[Event "9. Korbacher Open 2017"]
[Site "Korbach"]
[Date "2017.10.20"]
[Round "2"]
[White "Meyer, Marcel"]
[Black "Koellner, Christof"]
[Result "0-1"]
[ECO "B48"]
[WhiteElo "1740"]
[BlackElo "2073"]
[Annotator "NA RC"]
[PlyCount "64"]
[EventDate "2017.??.??"]
[EventType "swiss"]
[EventCountry "GER"]
[SourceTitle "playchess.com"]
[Source "ChessBase"]
[SourceQuality "1"]
[TimeControl "40/5400+30:1800+30"]

{[%evp 8,64,34,0,52,37,42,26,36,0,52,71,54,10,39,-3,0,-34,-26,-29,-17,-52,-38,-43,0,32767,32767,32767,-54,-123,-17,-50,-15,-23,-16,-22,-24,-35,-18,-38,-29,-24,-25,-55,-16,-1,-4,-97,-6,0,4,8,7,12,12,-436,-441,-431,-516]} 1. e4 {[%emt 0:00:00]} c5 {[%emt 0:01:14]} 2. Nf3 {[%emt 0:00:21]} e6 {[%emt 0:00:05]} 3. d4 {[%emt 0:00:34]} cxd4 {[%emt 0:00:03]} 4. Nxd4 {[%emt 0:00:11]} Nc6 {[%emt 0:00:02]} 5. Nc3 {[%emt 0:01:09]} Qc7 {[%emt 0:00:35]} 6. Be3 {[%emt 0:02:51]} a6 {[%emt 0:00:13]} 7. Qd2 {[%emt 0:01:59]} Nf6 {[%emt 0:00:18]} 8. f3 {[%emt 0:00:31]} Bb4 {[%emt 0:01:13]} 9. a3 {[%emt 0:01:50]} Be7 {[%emt 0:01:36] LiveBook: 60 Games} 10. Be2 {[%emt 0:03:29] B48: Sicilian: Taimanov: 5 Nc3 Qc7 6 Be3 a6 without Be2} (10. g4 O-O 11. h4 b5 12. h5 Nxh5 13. gxh5 Bb7 14. Nxc6 {1-0 (14) Tazbir,M (2552)-Papin,V (2570) Guimaraes 2012}) 10... Ne5 {[%emt 0:03:51]} 11. O-O {[%emt 0:05:25]} ({White should try} 11. O-O-O $14) 11... b5 {[%emt 0:04:23]} 12. Rfd1 $146 {[%emt 0:08:34]} ({Predecessor:} 12. b4 Bb7 13. Nd1 Rc8 14. Rc1 d5 15. exd5 Bxd5 16. c3 O-O 17. Nb2 Rfd8 {0-1 (27) Marasli,T-Djukic,S Artek 2000}) 12... O-O {[%emt 0:02:38]} 13. Qe1 {[%emt 0:10:32]} Bb7 {[%emt 0:07:18]} 14. Qf1 {[%emt 0:05:35]} Bc5 {[%emt 0:04:05]} 15. Bf2 {[%emt 0:06:35]} d5 {[%emt 0:12:47]} 16. exd5 {[%emt 0:02:34]} Nxd5 {[%emt 0:06:05]} 17. Ne4 {[%emt 0:05:12]} Bb6 {[%emt 0:07:03]} 18. Rac1 {[%emt 0:05:37]} ({White should play} 18. Kh1 $15) 18... Qe7 {[%emt 0:08:00]} (18... Nf4 $17 19. Bg3 Neg6) 19. c4 {[%emt 0:03:01]} Nxc4 {[%emt 0:04:02]} 20. Bxc4 {[%emt 0:01:09]} bxc4 {[%emt 0:00:17]} 21. Rxc4 {[%emt 0:01:40]} Rac8 {[%emt 0:08:40]} 22. Rdc1 {[%emt 0:02:44]} Rxc4 {[%emt 0:00:59]} 23. Rxc4 {[%emt 0:00:22]} f5 {[%emt 0:02:59]} 24. Nc3 $1 {[%emt 0:03:14]} Nxc3 {[%emt 0:06:16]} 25. Rxc3 {[%emt 0:02:23]} Qd6 {[%emt 0:01:25]} 26. Nb3 {[%emt 0:01:50]} Rd8 {[%emt 0:03:10]} 27. Rc2 {[%emt 0:04:24]} (27. Bc5 $11) 27... Bc7 {[%emt 0:02:54]} (27... Bxf2+ $17 28. Kxf2 Bd5) 28. Bg3 {[%emt 0:02:01]} Qb6+ {[%emt 0:01:45]} 29. Nc5 {[%emt 0:01:03]} Bxg3 {[%emt 0:02:49]} 30. hxg3 {[%emt 0:00:26]} a5 {[%emt 0:00:57]} 31. Qf2 $2 {[%emt 0:02:21]} (31. Qe1 $11 {and White has nothing to worry.}) 31... Rd1+ {[%emt 0:01:04]} 32. Kh2 {[%emt 0:00:11] [#]} e5 $19 {[%emt 0:00:19]} 0-1

[Event "9. Korbacher Open 2017"]
[Site "Korbach"]
[Date "2017.10.20"]
[Round "2"]
[White "Boehme, Jonas"]
[Black "Nemetz, Markus"]
[Result "1/2-1/2"]
[ECO "B90"]
[WhiteElo "1675"]
[BlackElo "1951"]
[Annotator "NA RC"]
[PlyCount "122"]
[EventDate "2017.??.??"]
[EventType "swiss"]
[EventCountry "GER"]
[SourceTitle "playchess.com"]
[Source "ChessBase"]
[SourceQuality "1"]
[TimeControl "40/5400+30:1800+30"]

{[%evp 8,122,31,29,22,21,50,32767,0,0,-9,0,13,4,11,6,11,-15,-19,-37,-32,-37,-2,-79,-73,-71,-68,-70,-79,32767,32767,32767,-70,32767,32767,-77,32767,32767,32767,-70,-68,-124,-131,-114,-128,-140,-111,-177,-152,-161,-159,-145,-156,-158,-167,-177,-186,-218,-233,-248,-248,-302,-189,-437,166,188,173,206,163,233,416,453,483,227,224,357,264,359,228,252,260,404,261,437,146,529,535,540,363,0,0,0,0,0,0,0,0,0,0,0,0,0,0,0,0,0,0,0,0,0,0,0,0,0,0,0,0]} 1. e4 {[%emt 0:08:31]} c5 {[%emt 0:00:07]} 2. Nf3 {[%emt 0:00:04]} d6 {[%emt 0:00:06]} 3. d4 {[%emt 0:00:01]} cxd4 {[%emt 0:00:12]} 4. Nxd4 {[%emt 0:00:02]} Nf6 {[%emt 0:00:10]} 5. Nc3 {[%emt 0:00:04]} a6 {[%emt 0:00:08]} 6. Be3 {[%emt 0:00:02]} Ng4 {[%emt 0:00:47] LiveBook: 2509 Partien} 7. Qd2 {[%emt 0:01:19]} Nxe3 {[%emt 0:01:33] B90: Sicilian Najdorf: Unusual White 6th moves, 6 Be3 Ng4 and 6 Be3 e5} 8. Qxe3 {[%emt 0:00:05]} e6 {[%emt 0:01:06]} (8... g6 9. O-O-O Bg7 10. h4 Nc6 11. Nb3 h5 12. Kb1 Ne5 13. Be2 b5 14. f4 Nc4 15. Bxc4 bxc4 {1-0 (39) Nisipeanu,L (2681)-Khismatullin,D (2651) Rijeka 2010}) 9. f4 {[%emt 0:02:16]} Qc7 {[%emt 0:10:28]} 10. O-O-O {[%emt 0:07:56]} Be7 {[%emt 0:04:24]} 11. h4 $146 {[%emt 0:06:06]} ({Predecessor:} 11. Kb1 O-O 12. g4 b5 13. f5 Nc6 14. h4 Nxd4 15. Qxd4 {0-1 (30) Donghvani,N (1444)-Petrenko,S (2207) Kutansi 2015}) 11... Nc6 {[%emt 0:07:22]} 12. h5 {[%emt 0:02:58]} h6 {[%emt 0:01:53]} 13. Bd3 {[%emt 0:08:36]} Nxd4 {[%emt 0:10:17]} 14. Qxd4 {[%emt 0:00:23]} Bf6 {[%emt 0:00:30]} 15. Qa4+ {[%emt 0:01:05]} Bd7 {[%emt 0:09:14]} 16. Bb5 {[%emt 0:00:41]} Bxc3 {[%emt 0:01:04]} 17. Bxd7+ {[%emt 0:00:03]} Qxd7 {[%emt 0:00:09]} 18. Qxd7+ {[%emt 0:00:16]} Kxd7 {[%emt 0:00:01]} 19. bxc3 {[%emt 0:00:12]} Rac8 {[%emt 0:00:29]} 20. Rh3 {[%emt 0:01:47]} Ke7 {[%emt 0:03:54]} 21. Rg3 {[%emt 0:00:32]} Rhg8 {[%emt 0:00:14]} 22. Rgd3 {[%emt 0:03:28]} Rgd8 {[%emt 0:01:37]} 23. Rg3 {[%emt 0:01:02]} Rc5 {[%emt 0:05:10]} 24. Rh3 {[%emt 0:04:50]} Rdc8 {[%emt 0:04:01]} 25. Kb2 {[%emt 0:05:00]} Rb5+ {[%emt 0:05:14]} 26. Ka1 {[%emt 0:00:06]} Rcc5 {[%emt 0:03:52]} 27. g4 {[%emt 0:00:30]} (27. Rhd3 $17) 27... Rc4 {[%emt 0:08:56]} 28. Re3 {[%emt 0:01:32]} Ra5 {[%emt 0:01:41]} 29. Rb1 {[%emt 0:00:31]} b5 {[%emt 0:00:49]} 30. Rb4 {[%emt 0:01:05]} Ra4 {[%emt 0:00:35]} 31. Rxa4 {[%emt 0:01:14]} Rxa4 {[%emt 0:00:09]} ({Don't take} 31... bxa4 32. Kb2 $17) 32. Kb2 {[%emt 0:00:47]} e5 {[%emt 0:05:24]} 33. fxe5 {[%emt 0:02:57]} dxe5 {[%emt 0:00:04]} 34. a3 {[%emt 0:01:40]} g6 {[%emt 0:03:35]} 35. g5 $2 {[%emt 0:01:49]} (35. Kb3 {might work better.}) 35... gxh5 $4 {[%emt 0:01:49]} (35... hxg5 $19 {and life is good for Black.} 36. hxg6 fxg6) 36. gxh6 {[%emt 0:00:04]} Rc4 {[%emt 0:01:45]} 37. Rh3 {[%emt 0:01:32]} Rc8 {[%emt 0:00:11]} 38. Rxh5 {[%emt 0:00:10]} f6 $2 {[%emt 0:00:39]} (38... Kf6 $16 39. Kb3 Kg6 40. Rxe5 Kxh6) 39. Kb3 {[%emt 0:02:55]} Kf7 {[%emt 0:00:49]} 40. a4 {[%emt 0:02:00]} (40. h7 $142 Rh8 41. Rh1) 40... Kg6 {[%emt 0:31:56]} 41. Rh3 {[%emt 0:31:16]} bxa4+ {[%emt 0:04:48]} 42. Kxa4 {[%emt 0:00:03]} Kh7 {[%emt 0:00:11]} 43. Kb4 {[%emt 0:01:59]} Rb8+ {[%emt 0:02:52]} 44. Ka5 {[%emt 0:02:01]} Rb2 {[%emt 0:00:20]} 45. Kxa6 {[%emt 0:00:10]} Rxc2 {[%emt 0:00:06]} 46. Kb5 {[%emt 0:01:07]} Re2 {[%emt 0:00:58]} 47. Rh4 {[%emt 0:00:53]} Rf2 {[%emt 0:00:00]} 48. Kc5 $2 {[%emt 0:00:00]} ({White must play} 48. c4 $18 Rf4 49. Rh1) 48... Rf4 {[%emt 0:00:00]} 49. Rxf4 {[%emt 0:00:00]} exf4 {[%emt 0:00:00]} 50. Kd4 {[%emt 0:00:00]} Kxh6 {[%emt 0:00:00]} 51. c4 {[%emt 0:00:00]} Kg7 {[%emt 0:00:00]} 52. Kd3 {[%emt 0:00:00]} Kf7 $1 {[%emt 0:00:00]} 53. Ke2 {[%emt 0:00:00]} Ke6 {[%emt 0:00:00]} 54. Kf3 {[%emt 0:00:00]} f5 {[%emt 0:00:00]} 55. Kxf4 {[%emt 0:00:00]} fxe4 {[%emt 0:00:00]} 56. Kxe4 {[%emt 0:00:00]} Kd6 {[%emt 0:00:00]} 57. Kd4 {[%emt 0:00:00]} Kc6 {[%emt 0:00:00]} 58. c5 {[%emt 0:00:00]} Kc7 {[%emt 0:00:00]} 59. Kd5 {[%emt 0:00:00]} Kd7 {[%emt 0:00:00]} 60. c6+ {[%emt 0:00:00]} Kc7 {[%emt 0:00:00]} 61. Kc5 $1 {[%emt 0:00:00]} Kc8 $11 {[%emt 0:00:00]} 1/2-1/2

[Event "9. Korbacher Open 2017"]
[Site "Korbach"]
[Date "2017.10.20"]
[Round "2"]
[White "Simukov, Erik"]
[Black "Lehmann, Tim"]
[Result "1/2-1/2"]
[ECO "B92"]
[WhiteElo "1621"]
[BlackElo "1865"]
[Annotator "NA RC"]
[PlyCount "75"]
[EventDate "2017.??.??"]
[EventType "swiss"]
[EventCountry "GER"]
[SourceTitle "playchess.com"]
[Source "ChessBase"]
[SourceQuality "1"]
[TimeControl "40/5400+30:1800+30"]

{[%evp 8,75,26,18,25,6,14,8,30,34,55,42,49,24,20,-47,-27,-28,-41,-43,129,32767,172,77,67,53,77,81,71,56,87,62,81,61,89,84,107,122,133,54,125,117,144,134,204,81,96,74,56,0,121,104,123,45,60,51,100,109,98,53,55,52,119,109,148,126,220,46,58,0]} 1. e4 {[%emt 0:00:00]} c5 {[%emt 0:00:09]} 2. Nf3 {[%emt 0:00:00]} d6 {[%emt 0:00:04]} 3. d4 {[%emt 0:00:14]} cxd4 {[%emt 0:00:06]} 4. Nxd4 {[%emt 0:00:08]} Nf6 {[%emt 0:00:05]} 5. Nc3 {[%emt 0:00:08]} a6 {[%emt 0:00:02]} 6. Be2 {[%emt 0:00:37]} e5 {[%emt 0:00:27]} 7. Nb3 {[%emt 0:00:15]} Be6 {[%emt 0:00:43]} 8. f4 {[%emt 0:09:01]} exf4 {[%emt 0:01:09] B92: Sicilian Najdorf: 6 Be2} (8... Be7 9. O-O O-O 10. Bf3 exf4 11. Bxf4 Nc6 12. Nd5 Bxd5 13. exd5 Ne5 14. Bxe5 dxe5 15. c4 a5 16. Kh1 Rc8 17. Rc1 {0-1 (44) Saveliev,A (2396)-Kokarev,D (2617) St Petersburg 2017}) 9. Bxf4 {[%emt 0:01:08]} Nc6 {[%emt 0:01:13]} 10. O-O {[%emt 0:03:28] LiveBook: 14 Games} Be7 {[%emt 0:06:42]} 11. Nd5 {[%emt 0:22:00]} ({Better is} 11. Qe1 $11) 11... Nxe4 {[%emt 0:14:56]} 12. Nxe7 Qxe7 $146 {[%emt 0:00:19]} ({But not} 12... Kxe7 13. Bf3 $14) ({Predecessor:} 12... Qb6+ 13. Kh1 Nxe7 14. Qd4 Qxd4 15. Nxd4 O-O 16. Bf3 d5 17. Rae1 Nf5 18. Nxf5 Bxf5 {0-1 (66) Szamoskozi,G (2335)-Lorand,N (2348) Hungary 2014}) 13. Bf3 {[%emt 0:07:03]} Bxb3 $2 {[%emt 0:18:41]} (13... d5 $15) 14. axb3 {[%emt 0:03:45]} O-O-O {[%emt 0:13:07] [#]} 15. Re1 {[%emt 0:06:48]} (15. b4 $1 $18 {[%mdl 512] is the precise move to win.}) 15... f5 {[%emt 0:01:33]} 16. Qd5 {[%emt 0:01:19]} Qd7 {[%emt 0:10:12]} 17. Bxe4 {[%emt 0:01:41]} fxe4 {[%emt 0:00:13]} 18. Rxe4 {[%emt 0:00:08]} Rhe8 {[%emt 0:01:37]} 19. Rae1 {[%emt 0:00:29]} Rxe4 {[%emt 0:00:27]} 20. Qxe4 {[%emt 0:03:34]} h6 {[%emt 0:00:30]} 21. h3 {[%emt 0:00:53]} Kc7 {[%emt 0:01:59]} 22. c4 {[%emt 0:01:27]} b6 {[%emt 0:01:11]} 23. Qe3 {[%emt 0:06:52]} (23. Bg3 $16) 23... Kb7 {[%emt 0:00:16]} (23... Qf5 $1 $14) 24. Rd1 {[%emt 0:00:46]} g5 {[%emt 0:03:03]} 25. Bxd6 {[%emt 0:05:08]} Re8 {[%emt 0:01:08]} (25... Qe8 $16 26. Qf3 Qe6) 26. Qd2 {[%emt 0:00:44]} (26. Qd3 $18 {und Weiss behält klar die Oberhand.}) 26... Qe6 $1 {[%emt 0:00:39]} 27. Bg3 {[%emt 0:04:26]} Rd8 {[%emt 0:02:48]} 28. Bd6 {[%emt 0:04:39]} (28. Qc1 $14) 28... Re8 {[%emt 0:00:22]} 29. Kh1 {[%emt 0:04:59]} g4 {[%emt 0:05:45] [#]} 30. hxg4 {[%emt 0:05:24]} (30. h4 $1 $16) 30... Qxg4 {[%emt 0:00:22]} 31. Rf1 {[%emt 0:00:16]} Qh5+ {[%emt 0:00:58]} 32. Kg1 {[%emt 0:02:31]} Rd8 {[%emt 0:03:08]} 33. Qf4 {[%emt 0:01:31]} ({White should try} 33. Rd1 $16) 33... Rd7 {[%emt 0:00:57]} 34. b4 {[%emt 0:01:59]} b5 {[%emt 0:01:33]} (34... Qe2 $14) 35. c5 {[%emt 0:00:35]} Qd5 {[%emt 0:01:40]} 36. Qg4 {[%emt 0:01:43]} Rf7 {[%emt 0:02:03]} (36... Qd4+ $16 37. Qxd4 Nxd4) 37. Rd1 $2 {[%emt 0:01:33]} (37. Rxf7+ $18 Qxf7 38. Qe4) 37... Qf5 {[%emt 0:01:27]} 38. Qh4 $11 {[%emt 0:00:32]} 1/2-1/2

[Event "9. Korbacher Open 2017"]
[Site "Korbach"]
[Date "2017.10.20"]
[Round "2"]
[White "Hildebrand, Georg"]
[Black "Flach, Helene"]
[Result "1-0"]
[ECO "A13"]
[WhiteElo "1477"]
[BlackElo "1862"]
[Annotator "NA RC"]
[PlyCount "61"]
[EventDate "2017.??.??"]
[EventType "swiss"]
[EventCountry "GER"]
[SourceTitle "playchess.com"]
[Source "ChessBase"]
[SourceQuality "1"]
[TimeControl "40/5400+30:1800+30"]

{[%evp 8,60,-42,-95,-88,-165,-148,-156,-141,-141,-133,-128,-131,-130,-135,-131,-113,-124,-36,-41,32767,32767,32767,32767,32767,439,399,449,703,360,425,427,719,530,29989,29990,29990,29991,29991,473,29992,473,29993,29994,29994,29993,29994,29994,29996,29997,29997,564,29998,29999,29999]} 1. c4 {[%emt 0:18:03]} e6 {[%emt 0:00:10]} 2. d4 {[%emt 0:03:58]} d5 {[%emt 0:00:08]} 3. Nf3 {[%emt 0:03:37]} Be7 {[%emt 0:00:54]} 4. c5 {[%emt 0:03:40]} b6 {[%emt 0:06:58]} 5. b4 {[%emt 0:00:52] [#]} a5 $1 {[%emt 0:05:01]} 6. Bd2 {[%emt 0:09:22]} (6. cxb6 $17 Bxb4+ 7. Bd2) 6... axb4 {[%emt 0:03:58]} 7. Bxb4 {[%emt 0:01:04]} Nc6 {[%emt 0:01:44]} 8. Ba3 {[%emt 0:01:18]} bxc5 {[%emt 0:02:56]} 9. Bxc5 {[%emt 0:04:19]} Bxc5 {[%emt 0:03:24]} 10. dxc5 {[%emt 0:00:08]} Qf6 {[%emt 0:05:29]} 11. Nbd2 {[%emt 0:02:02]} Qb2 {[%emt 0:01:32]} 12. e3 {[%emt 0:02:21]} Nb4 {[%emt 0:03:12]} (12... Rxa2 $17 13. Rxa2 Qxa2) 13. Bb5+ {[%emt 0:01:35]} Bd7 {[%emt 0:04:08]} 14. Bxd7+ {[%emt 0:00:55]} Kxd7 {[%emt 0:00:07]} 15. O-O {[%emt 0:00:33]} Rxa2 {[%emt 0:06:08]} 16. Rxa2 {[%emt 0:05:49]} Qxa2 {[%emt 0:04:18]} 17. Ne5+ {[%emt 0:08:00]} Ke8 {[%emt 0:12:13]} (17... Ke7 $142 18. Qh5 Nh6 19. Qg5+ Ke8 20. Qxg7 Rf8 21. Qxh6 Qxd2) 18. Qe2 {[%emt 0:08:24]} Qa4 {[%emt 0:03:57]} 19. Qg4 {[%emt 0:04:41]} g6 $2 {[%emt 0:07:05]} (19... Kf8 20. Rb1 g6) 20. Rb1 {[%emt 0:05:21]} f6 {[%emt 0:07:34]} 21. Qxe6+ {[%emt 0:01:40]} Ne7 {[%emt 0:00:17] [#]} 22. Rxb4 $1 {[%emt 0:05:03]} Qxb4 {[%emt 0:02:21]} 23. Qd7+ {[%emt 0:00:31]} Kf8 {[%emt 0:00:10]} 24. Qd8+ {[%emt 0:00:37]} Kg7 {[%emt 0:00:17]} 25. Qxe7+ {[%emt 0:00:35]} Kh6 {[%emt 0:00:14]} 26. Nf7+ {[%emt 0:01:52]} Kh5 {[%emt 0:00:51]} 27. Nf1 {[%emt 0:00:27]} Rg8 {[%emt 0:07:30]} 28. Ng3+ {[%emt 0:00:20]} Kg4 {[%emt 0:00:16]} 29. h3+ {[%emt 0:00:36]} Kh4 {[%emt 0:00:13]} 30. Qxf6+ {[%emt 0:00:12]} g5 {[%emt 0:00:12]} 31. Qh6# {[%emt 0:00:48]} 1-0

[Event "9. Korbacher Open 2017"]
[Site "Korbach"]
[Date "2017.10.20"]
[Round "3"]
[White "Sanati, Charlotte"]
[Black "Koellner, Christof"]
[Result "1/2-1/2"]
[ECO "D07"]
[WhiteElo "2098"]
[BlackElo "2073"]
[Annotator "NA RC"]
[PlyCount "140"]
[EventDate "2017.??.??"]
[EventType "swiss"]
[EventCountry "GER"]
[SourceTitle "playchess.com"]
[Source "ChessBase"]
[SourceQuality "1"]
[TimeControl "40/5400+30:1800+30"]

{[%evp 8,138,82,17,27,28,20,6,21,5,18,0,55,-19,28,4,8,13,46,37,38,32767,35,29,39,23,18,8,12,16,31,0,0,-33,0,-14,0,0,0,-8,0,0,25,1,20,0,4,32767,16,0,32767,-35,-39,32767,32767,-28,32767,-29,32767,32767,-27,-47,-12,32767,32767,32767,32767,32767,32767,32767,-8,32767,32767,32767,32767,66,84,68,175,75,32767,75,49,91,179,32767,32767,32767,136,32767,32767,32767,32767,104,129,120,32767,169,223,0,32767,0,293,366,427,180,247,253,187,270,189,0,43,0,0,0,0,0,0,0,32767,0,0,0,0,0,0,0,0,0,0,0,0]} 1. d4 {[%emt 0:00:00]} d5 {[%emt 0:00:33]} 2. c4 {[%emt 0:00:00]} Nc6 {[%emt 0:00:13]} 3. Nf3 {[%emt 0:01:31]} Bg4 {[%emt 0:00:42]} 4. Nc3 {[%emt 0:05:39]} Nf6 {[%emt 0:07:42]} 5. e3 {[%emt 0:02:13]} (5. Ne5 $16 Bf5 6. e3) 5... e6 {[%emt 0:05:45]} 6. Be2 {[%emt 0:02:46]} Bb4 {[%emt 0:04:50]} 7. O-O {[%emt 0:02:39] D07: Queen's Gambit: Chigorin Defence} O-O {[%emt 0:00:51]} 8. Qc2 {[%emt 0:02:43]} (8. Bd2 dxc4 9. h3 Bh5 10. Ne5 Nxe5 11. dxe5 Bxe2 12. Qxe2 Nd7 13. Qxc4 a5 14. Rfd1 Nxe5 15. Qb5 Qf6 16. Qxb7 {½-½ (37) Rakhmatullin,K (2335)-Iuldachev,S (2517) Tashkent 2007}) 8... Bxc3 $146 {[%emt 0:07:02]} ({Predecessor:} 8... dxc4 9. Bxc4 Bxf3 10. gxf3 Nd5 11. a3 Bxc3 12. bxc3 Qh4 13. e4 Nf4 14. Bxf4 Qxf4 {0-1 (25) Laframboise,M (2195)-Bergeron,P (2119) Montreal 2003}) 9. bxc3 {[%emt 0:04:49]} dxc4 {[%emt 0:03:43]} 10. e4 {[%emt 0:04:38]} (10. Bxc4 $14 Bxf3 11. gxf3) 10... Bxf3 {[%emt 0:10:48]} 11. Bxf3 {[%emt 0:00:55]} e5 {[%emt 0:00:33]} 12. d5 {[%emt 0:03:43]} Na5 {[%emt 0:03:02]} 13. Ba3 {[%emt 0:02:44]} Re8 {[%emt 0:12:48]} 14. Bb4 {[%emt 0:02:09]} b6 {[%emt 0:01:53]} 15. Bxa5 {[%emt 0:01:27]} bxa5 {[%emt 0:00:02]} 16. Be2 {[%emt 0:06:50]} Qd6 {[%emt 0:00:20]} 17. Bxc4 {[%emt 0:02:52]} Reb8 {[%emt 0:02:51]} 18. Rab1 {[%emt 0:03:31]} Rb6 {[%emt 0:00:18]} 19. Bb5 {[%emt 0:05:48]} Rab8 {[%emt 0:02:18]} 20. Bc6 {[%emt 0:06:00]} Qc5 {[%emt 0:03:09]} 21. h3 {[%emt 0:07:11]} h6 {[%emt 0:01:11]} 22. Rb3 {[%emt 0:15:59]} Qc4 {[%emt 0:00:59]} 23. Rxb6 {[%emt 0:00:11]} Rxb6 {[%emt 0:05:37]} 24. Re1 {[%emt 0:01:13]} Qc5 {[%emt 0:07:48]} 25. g3 {[%emt 0:03:36]} Rb4 {[%emt 0:02:08]} 26. Re3 {[%emt 0:01:52]} Qc4 {[%emt 0:06:02]} 27. Kg2 {[%emt 0:08:30]} Qc5 {[%emt 0:05:02]} 28. a3 {[%emt 0:01:25]} Rb6 {[%emt 0:00:15]} 29. a4 {[%emt 0:00:39]} a6 {[%emt 0:00:11]} 30. Re2 {[%emt 0:00:41]} Qc4 {[%emt 0:00:24]} 31. Re3 $1 {[%emt 0:00:37]} Rb3 {[%emt 0:01:09]} 32. Qd3 {[%emt 0:00:34]} Qxd3 {[%emt 0:01:08]} 33. Rxd3 {[%emt 0:00:02]} Nxe4 {[%emt 0:01:11]} 34. Re3 {[%emt 0:00:04]} Nd6 {[%emt 0:03:35]} 35. Rxe5 {[%emt 0:00:19]} Kf8 {[%emt 0:00:29]} 36. Re3 {[%emt 0:01:02]} g6 {[%emt 0:00:16]} 37. Kf3 {[%emt 0:00:49]} Nf5 {[%emt 0:01:27]} 38. Rd3 {[%emt 0:00:25]} Ke7 {[%emt 0:00:22]} 39. g4 {[%emt 0:00:14]} Ng7 {[%emt 0:00:27]} 40. Ke3 {[%emt 0:00:37]} Kd6 {[%emt 0:30:46]} 41. Kd4 {[%emt 0:30:48]} f5 {[%emt 0:00:00]} 42. f3 {[%emt 0:00:00]} f4 {[%emt 0:00:00]} (42... Rb6 $16) 43. Ke4 {[%emt 0:00:00]} (43. c4 $18 {and White stays clearly on top.} Rb4 44. h4) 43... g5 {[%emt 0:00:00]} 44. c4 {[%emt 0:00:00]} Rb1 {[%emt 0:00:00] [#]} 45. Kd4 $1 {[%emt 0:00:00]} Re1 {[%emt 0:00:00]} (45... Ke7 $1 $14) 46. c5+ {[%emt 0:00:00]} Ke7 {[%emt 0:00:00]} 47. Kc4 {[%emt 0:00:00]} Rc1+ {[%emt 0:00:00]} 48. Rc3 {[%emt 0:00:00]} Rd1 {[%emt 0:00:00]} 49. Rc2 {[%emt 0:00:00]} Re1 {[%emt 0:00:00]} 50. Rd2 {[%emt 0:01:46]} (50. Rb2 $18) 50... Rc1+ {[%emt 0:01:54]} 51. Kd4 {[%emt 0:00:14]} Re1 {[%emt 0:00:17]} 52. Kd3 $2 {[%emt 0:01:48]} (52. Bb7 $18) 52... Re3+ $1 {[%emt 0:01:02]} 53. Kd4 {[%emt 0:00:47]} Re1 {[%emt 0:00:17]} 54. Kd3 {[%emt 0:01:18]} Re3+ {[%emt 0:00:02] [#]} 55. Kc4 $1 {[%emt 0:00:54]} Ne8 {[%emt 0:01:20]} 56. Rd4 {[%emt 0:00:43]} (56. Rb2 $142) 56... Nf6 {[%emt 0:00:26]} 57. d6+ {[%emt 0:00:21]} cxd6 {[%emt 0:00:23]} 58. cxd6+ {[%emt 0:00:07]} ({Less strong is} 58. Rxd6 Re1 $11) 58... Kd8 {[%emt 0:00:26] [#]} 59. Rd2 $2 {[%emt 0:01:07]} (59. d7 $1 $18) 59... Nd7 {[%emt 0:00:33]} 60. Rb2 {[%emt 0:00:30]} Ne5+ {[%emt 0:00:36]} 61. Kd5 {[%emt 0:00:09]} Nxc6 {[%emt 0:00:27]} 62. Kxc6 {[%emt 0:00:03]} Rc3+ {[%emt 0:00:14]} 63. Kd5 {[%emt 0:00:33]} Rxf3 {[%emt 0:01:16]} 64. Rb8+ {[%emt 0:01:03]} Kd7 {[%emt 0:00:07]} 65. Rb7+ {[%emt 0:00:08]} Kd8 {[%emt 0:00:59]} 66. Rb8+ {[%emt 0:00:18]} Kd7 {[%emt 0:00:03]} 67. Rb7+ {[%emt 0:00:05]} Kd8 {[%emt 0:00:34]} 68. Rb8+ {[%emt 0:00:30]} Kd7 {[%emt 0:00:02]} 69. Rb7+ $11 {[%emt 0:00:09]} Kc8 70. Ke4 Kd8 1/2-1/2